Cogmind - Beta 11.1 @@@ ROGUE MODE // 2022.11.19 @ 14:10:17 Player: Mr.Manatee Result: Escaped! Performance ------------- Evolutions (9) 4500 Regions Visited (16) 3200 Robots Destroyed (32) 160 Value Destroyed (1117) 1117 Prototype IDs (39) 780 Alien Tech Used (0) 0 Bonus (3378) 3378 TOTAL SCORE: 13135 Bonus ------- Follower Combat Kills 78 Aligned with FarCom 300 Win 3000 Cogmind --------- Core Integrity 1600/1600 Matter 94/300 Energy 238/240 System Corruption 0% Temperature Warm (106) Movement Flying (24) Location To Epsilon Eridani Parts ------- > --- POWER (2) -------- Micro Fission Core Light Quantum Reactor > --- PROPULSION (8) --- Nuclear Pulse Thruster Cooled Field Propulsion Drive Field Propulsion Array Field Propulsion Array Experimental Q-thruster Experimental Q-thruster > --- UTILITY (11) ----- Advanced Signal Interpreter Advanced Terrain Scan Processor Advanced Reaction Control System Experimental Thermal Shield Hacking Suite System Shield Advanced System Shield > --- WEAPON (4) ------- Enhanced Nova Cannon > --- INVENTORY (5) ---- Nuclear Pulse Array Experimental Energy Well (600) Fusion Bomb Launcher Peak State ------------ > --- POWER ------------ Micro Fission Core Light Quantum Reactor > --- PROPULSION ------- Nuclear Pulse Thruster Cooled Field Propulsion Drive Field Propulsion Array Field Propulsion Array Improved Diametric Drive Experimental Q-thruster > --- UTILITY ---------- Advanced Signal Interpreter Advanced Terrain Scan Processor Advanced Reaction Control System Experimental Thermal Shield Hacking Suite System Shield Advanced System Shield > --- WEAPON ----------- Enhanced Nova Cannon Enhanced Nova Cannon > --- INVENTORY -------- Nuclear Pulse Array Experimental Q-thruster Experimental Energy Well Fusion Bomb Launcher [Rating: 133] Favorites ----------- Power Ion Engine Engine Ion Engine Power Core Light Nuclear Core Reactor Particle Reactor Propulsion Field Propulsion Array Treads Light Treads Leg Aluminum Leg Hover Unit Aerolev Unit Flight Unit Field Propulsion Array Utility Small Storage Unit Device Improved Heat Sink Storage Small Storage Unit Processor Advanced Signal Interpreter Hackware System Shield Protection Weapon Shielding Weapon Enhanced Autogun Energy Gun Medium Laser Energy Cannon Enhanced Nova Cannon Ballistic Gun Enhanced Autogun Launcher Compact Tesla Bomb Launcher Slashing Weapon Katana Build | -11 -10 -10 -10 -9 -8 -7 -7 -7 -6 -5 -5 -5 -4 -3 -2 -1 ------- Run | Scr Mat Min Exi Min Mat Fac Low Low Fac Fac Was Fac Fac Res Res Acc Slots Evolved 18 | . . . . . 4 2 . . 2 2 . . 2 2 2 2 Power 1 | . . . . . 1 . . . . . . . . . . . Propulsion 6 | . . . . . 1 . . . 1 . . . 2 1 . 1 Utility 9 | . . . . . 2 2 . . 1 2 . . . 1 . 1 Weapon 2 | . . . . . . . . . . . . . . . 2 . Parts Attached 125 | . 4 4 1 . 32 14 . . 8 4 3 12 8 18 7 10 Power 20 | . . . . . 4 4 . . 1 . . 2 2 4 1 2 Engine 2 | . . . . . 1 1 . . . . . . . . . . Core 11 | . . . . . 3 3 . . 1 . . 1 1 1 . 1 Reactor 7 | . . . . . . . . . . . . 1 1 3 1 1 Propulsion 38 | . 2 . 1 . 15 3 . . 2 1 . . 3 6 1 4 Treads 11 | . . . . . 11 . . . . . . . . . . . Leg 4 | . 2 . 1 . 1 . . . . . . . . . . . Wheel . | . . . . . . . . . . . . . . . . . Hover 2 | . . . . . 2 . . . . . . . . . . . Flight 21 | . . . . . 1 3 . . 2 1 . . 3 6 1 4 Utility 47 | . 1 3 . . 7 5 . . 5 2 3 7 2 7 2 3 Device 20 | . . 1 . . 3 1 . . 2 1 1 3 2 5 1 . Storage 1 | . . . . . . . . . . . . . . . . 1 Processor 4 | . . . . . 1 . . . 1 1 . . . . . 1 Hackware 6 | . . . . . . 2 . . . . . 2 . 1 . 1 Protection 16 | . 1 2 . . 3 2 . . 2 . 2 2 . 1 1 . Artifact . | . . . . . . . . . . . . . . . . . Weapon 20 | . 1 1 . . 6 2 . . . 1 . 3 1 1 3 1 Energy Gun 5 | . 1 1 . . 1 . . . . . . . 1 . 1 . Energy Cannon 4 | . . . . . . . . . . . . 1 . . 2 1 Ballistic Gun 5 | . . . . . 4 1 . . . . . . . . . . Ballistic Cannon . | . . . . . . . . . . . . . . . . . Launcher 2 | . . . . . 1 . . . . . . . . 1 . . Special Weapon . | . . . . . . . . . . . . . . . . . Impact Weapon . | . . . . . . . . . . . . . . . . . Slashing Weapon 4 | . . . . . . 1 . . . 1 . 2 . . . . Piercing Weapon . | . . . . . . . . . . . . . . . . . Special Melee Weapon . | . . . . . . . . . . . . . . . . . Unidentified Prototypes 16 | . . 1 . . 5 1 . . . . 1 2 . 3 1 2 Parts Lost 15 | . . . . . 1 2 . . . . . 2 . 9 1 . Power . | . . . . . . . . . . . . . . . . . Propulsion 2 | . . . . . . . . . . . . . . 2 . . Utility 12 | . . . . . 1 2 . . . . . 2 . 7 . . Weapon 1 | . . . . . . . . . . . . . . . 1 . Highest Loss Streak 6 | . . . . . 1 2 . . . . . 1 . 6 1 . To Critical Strikes . | . . . . . . . . . . . . . . . . . Average Slot Usage (%) 81 | . 99 95 100 100 94 68 76 76 75 66 74 72 75 81 58 56 Engine 5 | . 14 14 14 14 9 . . . . . . . . . . . Core 4 | . . . . . 8 8 7 7 6 5 5 5 5 4 4 3 Treads 4 | . . . . . 21 5 . . . . . . . . . . Leg 8 | . 28 28 28 28 4 . . . . . . . . . . . Flight 8 | . . . . . . 8 15 15 20 11 11 11 21 22 20 21 Device 6 | . . . . . 11 7 7 7 7 6 11 8 7 11 7 8 Storage 7 | . 14 14 14 14 9 7 7 7 6 5 5 5 5 1 . . Processor 3 | . . . . . 1 7 7 7 7 6 11 8 5 4 4 4 Hackware 5 | . . . . . . . 15 15 13 11 11 13 15 16 8 10 Protection 8 | . 13 9 14 14 9 8 7 7 5 11 9 10 5 3 3 . Energy Gun 4 | . 13 14 14 14 2 . . . . . . . 2 3 1 . Ballistic Gun 7 | . 14 14 14 14 14 9 . . . . . . . . . . Slashing Weapon 1 | . . . . . . . 7 7 5 4 5 5 5 4 1 . Naked Turns . | . . . . . . . . . . . . . . . . . Heaviest Build 42 | 13 15 17 17 17 34 28 20 20 27 29 30 30 42 42 42 39 Greatest Support 60 | 20 20 20 20 20 60 60 21 21 27 30 30 30 43 52 49 50 Greatest Overweight (x) 3 | . . . . . 3 . . . . . . . . . . . Average Overweight (x) . | . . . . . . . . . . . . . . . . . Largest Inventory Capacity 8 | 8 8 8 8 8 8 8 8 8 8 8 8 8 8 8 5 5 Average Capacity 7 | 8 8 8 8 8 8 8 8 8 8 8 8 8 8 6 5 5 Most Carried 8 | 6 8 8 8 8 8 8 8 8 8 8 8 8 8 8 5 5 Average Carried 7 | 6 7 7 7 8 7 7 8 8 6 7 7 7 6 5 4 4 Final Capacity 8 | 8 8 8 8 8 8 8 8 8 8 8 8 8 8 5 5 5 Final Carried 8 | 6 8 7 8 8 8 8 8 8 8 7 8 8 7 5 5 4 Class Distribution -------------------- 60% | Mutant 19% | Hacker-Sprinter 12% | Hacker-Mutant 4% | Hacker-Scout 3% | Hacker-Ninja Dominant Class ---------------- Mutant | -10/Materials Mutant | -10/Mines Mutant | -10/Exiles Mutant | -9/Mines Mutant | -8/Materials Mutant | -7/Factory Hacker-Mutant | -7/Lower Caves Hacker-Mutant | -7/Lower Caves Hacker-Mutant | -6/Factory Hacker-Mutant | -5/Factory Hacker-Scout | -5/Waste Hacker-Ninja | -5/Factory Hacker-Sprinter | -4/Factory Hacker-Sprinter | -3/Research Hacker-Sprinter | -2/Research Hacker-Sprinter | -1/Access Resources | -11 -10 -10 -10 -9 -8 -7 -7 -7 -6 -5 -5 -5 -4 -3 -2 -1 ----------- Run | Scr Mat Min Exi Min Mat Fac Low Low Fac Fac Was Fac Fac Res Res Acc Matter Collected 1625 | 200 103 47 . . 335 323 . . . . 285 18 . 314 . . Remotely . | . . . . . . . . . . . . . . . . . Salvage Created 1504 | . 224 13 . . 433 192 . . . . . 56 . 586 . . Parts 81 | . 9 . . . 25 9 . . . . . 9 . 29 . . Haulers Intercepted 5 | . . . . . 4 1 . . . . . . . . . . Recyclers Shooed 2 | . 1 . . . 1 . . . . . . . . . . . Parts Field Recycled . | . . . . . . . . . . . . . . . . . Retrieved Matter . | . . . . . . . . . . . . . . . . . Parts Self-Destructed . | . . . . . . . . . . . . . . . . . Prevented . | . . . . . . . . . . . . . . . . . Kills | -11 -10 -10 -10 -9 -8 -7 -7 -7 -6 -5 -5 -5 -4 -3 -2 -1 ------- Run | Scr Mat Min Exi Min Mat Fac Low Low Fac Fac Was Fac Fac Res Res Acc Combat Hostiles Destroyed 24 | . 6 1 . . 5 3 . . . . . 2 . 7 . . Melee 7 | . . . . . . 2 . . . . . 2 . 3 . . Guns 13 | . 6 1 . . 5 1 . . . . . . . . . . AOE 3 | . . . . . . . . . . . . . . 3 . . Classes Destroyed 11 | . 2 1 . . 2 1 . . . . . 1 . 4 . . Worker 2 | . . . . . . . . . . . . . . 2 . . Hauler 5 | . . . . . 4 1 . . . . . . . . . . Recycler 1 | . . . . . . . . . . . . . . 1 . . Mechanic 1 | . . . . . . . . . . . . . . 1 . . Swarmer 7 | . 2 . . . . . . . . . . . . 5 . . Cutter 2 | . . . . . . . . . . . . 2 . . . . Grunt 6 | . 4 . . . 2 . . . . . . . . . . . Sentry 3 | . . . . . 3 . . . . . . . . . . . Hunter 2 | . . . . . . . . . . . . . . 2 . . Programmer 3 | . . . . . . 3 . . . . . . . . . . Assembled 1 | . . 1 . . . . . . . . . . . . . . Best Kill Streak 5 | . 2 1 . . 1 2 . . . . . 2 . 5 . . Combat Bots Only 5 | . 2 1 . . 1 2 . . . . . 2 . 5 . . Max Kills in Single Turn 3 | . 1 1 . . 1 1 . . . . . 1 . 3 . . Gunslinging . | . . . . . . . . . . . . . . . . . Exploded 3 | . . . . . . . . . . . . . . 3 . . Melee 1 | . . . . . . 1 . . . . . 1 . 1 . . Uniques/NPCs Destroyed . | . . . . . . . . . . . . . . . . . Combat | -11 -10 -10 -10 -9 -8 -7 -7 -7 -6 -5 -5 -5 -4 -3 -2 -1 -------- Run | Scr Mat Min Exi Min Mat Fac Low Low Fac Fac Was Fac Fac Res Res Acc Damage Taken 3928 | . 392 86 . . 358 945 65 13 105 263 . 512 . 722 409 58 Core 637 | . 65 55 . . 43 128 . 13 37 . . 36 . 141 119 . Absorbed by Shields . | . . . . . . . . . . . . . . . . . Redirected to Shielding 231 | . 26 10 . . 20 50 . . . 13 . 70 . 42 . . Regen/Repaired (Parts) 544 | . . . . . 154 . . . 134 . . . . . . 256 Core Remaining (%) 89 | 100 . . . 52 92 . . 79 95 . . 96 100 89 91 100 Volleys Fired 119 | . 26 4 . . 36 24 . . . . . . . 4 5 20 Largest 2 | . 2 2 . . 2 2 . . . . . . . 1 1 1 Hottest 120 | . 70 70 . . 70 50 . . . . . . . 49 120 120 Shots Fired 205 | . 52 8 . . 72 44 . . . . . . . 4 5 20 Gun 176 | . 52 8 . . 72 44 . . . . . . . . . . Cannon 25 | . . . . . . . . . . . . . . . 5 20 Launcher 4 | . . . . . . . . . . . . . . 4 . . Special . | . . . . . . . . . . . . . . . . . Kinetic 120 | . 26 4 . . 46 44 . . . . . . . . . . Thermal 81 | . 26 4 . . 26 . . . . . . . . . 5 20 Explosive . | . . . . . . . . . . . . . . . . . Electromagnetic 4 | . . . . . . . . . . . . . . 4 . . Robot Hit Streak 19 | . 16 4 . . 19 7 . . . . . . . . . . Robot Miss Streak 5 | . 2 1 . . 3 5 . . . . . . . 3 . 4 Penetration Max . | . . . . . . . . . . . . . . . . . Secondary Targets . | . . . . . . . . . . . . . . . . . Shots Hit Robots 151 | . 41 6 . . 55 30 . . . 5 . 4 . 10 . . Core Hits 53 | . 11 4 . . 17 5 . . . 1 . 2 . 13 . . Critical Kills . | . . . . . . . . . . . . . . . . . Critical Parts Destroyed 2 | . 1 . . . 1 . . . . . . . . . . . Critical Strikes 8 | . 3 . . . 2 2 . . . . . 1 . . . . Burn 3 | . 2 . . . 1 . . . . . . . . . . . Destroy 2 | . 1 . . . 1 . . . . . . . . . . . Sever 3 | . . . . . . 2 . . . . . 1 . . . . Melee Attacks 89 | . . . . . . 14 . . 20 12 . 11 . 22 10 . Impact . | . . . . . . . . . . . . . . . . . Slashing 89 | . . . . . . 14 . . 20 12 . 11 . 22 10 . Piercing . | . . . . . . . . . . . . . . . . . Sneak Attacks 5 | . . . . . . 1 . . . . . . . 4 . . Combat Hostiles . | . . . . . . . . . . . . . . . . . Follow-up Attacks . | . . . . . . . . . . . . . . . . . Damage Inflicted 3632 | . 521 128 . . 759 754 . . . 163 . 153 . 1154 . . Guns 1769 | . 512 73 . . 758 426 . . . . . . . . . . Cannons . | . . . . . . . . . . . . . . . . . Explosions 450 | . . . . . . . . . . . . . . 450 . . Melee 1267 | . . . . . . 328 . . . 163 . 153 . 623 . . Ramming 146 | . 9 55 . . 1 . . . . . . . . 81 . . Kinetic 1172 | . 238 35 . . 473 426 . . . . . . . . . . Thermal 597 | . 274 38 . . 285 . . . . . . . . . . . Explosive . | . . . . . . . . . . . . . . . . . Electromagnetic 450 | . . . . . . . . . . . . . . 450 . . Impact . | . . . . . . . . . . . . . . . . . Slashing 1267 | . . . . . . 328 . . . 163 . 153 . 623 . . Piercing . | . . . . . . . . . . . . . . . . . Highest Corruption 7 | . . . . . . 7 7 7 . . . . . 6 2 . Average Corruption 4 | . . . . . . 4 7 7 . . . . . 6 1 . Corruption Purged . | . . . . . . . . . . . . . . . . . Corruption Blocked . | . . . . . . . . . . . . . . . . . Effects 21 | . . . . . . 9 5 . . . . . . 6 1 . Message Errors 4 | . . . . . . . . . . . . . . 4 . . Matter Fused 3 | . . . . . . 1 1 . . . . . . 1 . . Heat Flow Errors 3 | . . . . . . 3 . . . . . . . . . . Energy Discharges 5 | . . . . . . . 3 . . . . . . 1 1 . Data Loss (minor) 2 | . . . . . . 1 1 . . . . . . . . . Data Loss (major) 1 | . . . . . . 1 . . . . . . . . . . Alerts 1 | . . . . . . 1 . . . . . . . . . . Weapon Failures 2 | . . . . . . 2 . . . . . . . . . . Overload Shots . | . . . . . . . . . . . . . . . . . Overflow Damage 92 | . . . . . . 9 . . . . . 28 . 55 . . Projectiles . | . . . . . . . . . . . . . . . . . Explosions 55 | . . . . . . . . . . . . . . 55 . . Melee 37 | . . . . . . 9 . . . . . 28 . . . . Knockbacks 1 | . . 1 . . . . . . . . . . . . . . Impact 1 | . . 1 . . . . . . . . . . . . . . Kinetic . | . . . . . . . . . . . . . . . . . Secondary . | . . . . . . . . . . . . . . . . . Self-Inflicted Damage 194 | . . . . . . . . . . . . . . 194 . . Shots 4 | . . . . . . . . . . . . . . 4 . . Rammed 1 | . . . . . 1 . . . . . . . . . . . Targets Rammed 12 | . 3 8 . . 1 . . . . . . . . . . . Kicked 11 | . 3 8 . . . . . . . . . . . . . . Crushed . | . . . . . . . . . . . . . . . . . Highest Temperature 311 | . 249 36 . . 231 232 . . 7 . . 12 . 54 311 291 Average Temperature 86 | . 100 19 . . 69 111 . . 7 . . 10 . 11 130 112 Received Heat Transfer 747 | . 198 . . . 171 135 9 27 27 72 . 72 . . 36 . Effects 8 | . . . . . . . . . . . . . . . 3 5 Energy Bleed 2 | . . . . . . . . . . . . . . . . 2 Interference 6 | . . . . . . . . . . . . . . . 3 3 Siege Activations . | . . . . . . . . . . . . . . . . . Robots Corrupted 1 | . . . . . . . . . . . . . . 1 . . Combat Hostiles 1 | . . . . . . . . . . . . . . 1 . . Parts Fried 4 | . . . . . . . . . . . . . . 4 . . Impact Corruptions . | . . . . . . . . . . . . . . . . . Robots Melted . | . . . . . . . . . . . . . . . . . Combat Hostiles . | . . . . . . . . . . . . . . . . . Parts Melted 2 | . 2 . . . . . . . . . . . . . . . Heat Transferred 1998 | . 962 111 . . 925 . . . . . . . . . . . Parts Sabotaged . | . . . . . . . . . . . . . . . . . Parts Stolen . | . . . . . . . . . . . . . . . . . Parts Stripped . | . . . . . . . . . . . . . . . . . Power Chain Reactions . | . . . . . . . . . . . . . . . . . Missiles Intercepted . | . . . . . . . . . . . . . . . . . Alert | -11 -10 -10 -10 -9 -8 -7 -7 -7 -6 -5 -5 -5 -4 -3 -2 -1 ------- Run | Scr Mat Min Exi Min Mat Fac Low Low Fac Fac Was Fac Fac Res Res Acc Peak Influence 838 | . 176 68 . . 144 404 . . 207 152 53 210 41 428 838 467 Initial 256 | . . 68 . . . 41 . . 102 11 53 30 19 21 234 256 Average 105 | . 69 42 . . 48 75 . . 131 59 49 85 32 113 442 343 Maximum Alert Level 3 | . . . . . . 2 . . 1 . . 1 . 2 3 2 Low Security (%) 83 | 100 100 100 . 100 100 88 . . 81 100 100 98 100 83 . . Level 1 12 | . . . . . . 8 . . 18 . . 1 . 13 54 72 Level 2 4 | . . . . . . 2 . . . . . . . 3 27 27 Level 3 . | . . . . . . . . . . . . . . . 18 . Level 4 . | . . . . . . . . . . . . . . . . . Level 5 . | . . . . . . . . . . . . . . . . . High Security . | . . . . . . . . . . . . . . . . . Max Security . | . . . . . . . . . . . . . . . . . Squads Dispatched 19 | . 2 . . . . 7 . . 4 1 . 5 . . . . Investigation 9 | . 1 . . . . 1 . . 4 1 . 2 . . . . Extermination 3 | . . . . . . 2 . . . . . 1 . . . . Reinforcement 7 | . 1 . . . . 4 . . . . . 2 . . . . Assault . | . . . . . . . . . . . . . . . . . Garrison . | . . . . . . . . . . . . . . . . . Intercept . | . . . . . . . . . . . . . . . . . Searches Triggered . | . . . . . . . . . . . . . . . . . Construction Impeded 1 | . . . . . . . . . . . . 1 . . . . Haulers Reinforced . | . . . . . . . . . . . . . . . . . Active Scanning Responses . | . . . . . . . . . . . . . . . . . Cargo Convoy Interrupts . | . . . . . . . . . . . . . . . . . Stealth | -11 -10 -10 -10 -9 -8 -7 -7 -7 -6 -5 -5 -5 -4 -3 -2 -1 --------- Run | Scr Mat Min Exi Min Mat Fac Low Low Fac Fac Was Fac Fac Res Res Acc Distress Signals 16 | . 1 . . . 2 2 . . . 1 . 1 . 3 5 1 Communications Jammed . | . . . . . . . . . . . . . . . . . Distress Signals . | . . . . . . . . . . . . . . . . . Times Spotted 174 | . 8 10 . . 17 34 4 3 9 4 1 15 . 26 28 15 Peak Tracking Total 22 | . 3 15 . . 4 9 7 5 5 6 1 11 . 11 22 6 Tactical Retreats 32 | . . . . . . 8 1 . 2 2 . 3 . 5 8 3 Traps | -11 -10 -10 -10 -9 -8 -7 -7 -7 -6 -5 -5 -5 -4 -3 -2 -1 ------- Run | Scr Mat Min Exi Min Mat Fac Low Low Fac Fac Was Fac Fac Res Res Acc Traps Triggered 10 | . . . . . . 1 . . 1 1 . 3 . 3 1 . Indirectly . | . . . . . . . . . . . . . . . . . Trap Hack Attempts . | . . . . . . . . . . . . . . . . . Triggered . | . . . . . . . . . . . . . . . . . Disarmed . | . . . . . . . . . . . . . . . . . Reprogrammed . | . . . . . . . . . . . . . . . . . Reused . | . . . . . . . . . . . . . . . . . Traps Extracted . | . . . . . . . . . . . . . . . . . Installed . | . . . . . . . . . . . . . . . . . Triggered . | . . . . . . . . . . . . . . . . . Machines | -11 -10 -10 -10 -9 -8 -7 -7 -7 -6 -5 -5 -5 -4 -3 -2 -1 ---------- Run | Scr Mat Min Exi Min Mat Fac Low Low Fac Fac Was Fac Fac Res Res Acc Machines Disabled 5 | . . . . . 1 . . . . . . 1 . 2 . 1 Max in Single Turn 1 | . . . . . 1 . . . . . . . . 1 . 1 Garrison Access 2 | . . . . . . . . . . . . 1 1 . . . Energy Cycler 1 | . . . . . . . . . . . . . . . . 1 Machines Sabotaged . | . . . . . . . . . . . . . . . . . Garrisons Compromised . | . . . . . . . . . . . . . . . . . Overloaded Fab Kills . | . . . . . . . . . . . . . . . . . Hacking | -11 -10 -10 -10 -9 -8 -7 -7 -7 -6 -5 -5 -5 -4 -3 -2 -1 --------- Run | Scr Mat Min Exi Min Mat Fac Low Low Fac Fac Was Fac Fac Res Res Acc Machines Accessed 76 | . 2 1 5 . 6 15 . 1 7 3 . 11 8 5 5 7 Terminals 37 | . 2 . . . 4 7 . . 4 1 . 6 3 4 5 1 Fabricators 9 | . . . . . . 3 . . 1 . . 3 2 . . . Repair Stations 6 | . . . . . 1 . . . 1 1 . . . . . 3 Recycling Units 4 | . . . . . . 1 . . . . . . 1 1 . 1 Scanalyzers 7 | . . . . . 1 2 . . 1 1 . 1 1 . . . Garrison Access 6 | . . . . . . 2 . . . . . 1 1 . . 2 Total Hacks 240 | . 6 1 28 . 22 33 . 1 29 8 . 30 17 24 20 21 Successful 137 | . 3 1 28 . 19 14 . 1 14 4 . 15 10 11 10 7 Failed 102 | . 3 . . . 3 19 . . 14 4 . 15 7 13 10 14 Catastrophic 21 | . 2 . . . . 4 . . 2 . . 2 3 2 2 4 Database Lockouts 1 | . . . . . . . . . 1 . . . . . . . Manual 85 | . 5 . 1 . 8 12 . . 18 3 . 10 3 16 9 . Terminals 119 | . 6 . . . 9 15 . . 21 5 . 13 7 21 20 2 Fabricators 23 | . . . . . . 8 . . 2 . . 9 4 . . . Repair Stations 28 | . . . . . 9 . . . 4 2 . . . . . 13 Recycling Units 6 | . . . . . . 1 . . . . . . 1 3 . 1 Scanalyzers 21 | . . . . . 4 6 . . 2 1 . 5 3 . . . Garrison Access 13 | . . . . . . 3 . . . . . 3 2 . . 5 Terminal Hacks 60 | . 1 1 28 . 3 2 . 1 5 2 . 2 3 5 7 . Record 32 | . . . 27 . . . . . . . . . . 2 3 . Part Schematic 6 | . . . . . 1 . . . 4 . . . 1 . . . Open Door 2 | . . 1 . . . . . 1 . . . . . . . . Open DSF 6 | . . . . . . 2 . . . . . 2 2 . . . Level Access Points 2 | . . . . . 1 . . . . . . . . . 1 . Terminal Index 2 | . . . . . . . . . . 1 . . . 1 . . Alert Level 1 | . . . . . . . . . . 1 . . . . . . Unreport Threat 3 | . . . . . . . . . . . . . . . 3 . Recall Investigation 1 | . . . . . . . . . 1 . . . . . . . Zone Layout 4 | . 1 . . . 1 . . . . . . . . 2 . . EX-Prototype ID Bank 1 | . . . 1 . . . . . . . . . . . . . Fabricator Hacks 14 | . . . . . . 4 . . 2 . . 6 2 . . . Network Status 3 | . . . . . . 1 . . . . . 1 1 . . . Load Schematic 4 | . . . . . . 1 . . 1 . . 2 . . . . Build 7 | . . . . . . 2 . . 1 . . 3 1 . . . Repair Station Hacks 17 | . . . . . 8 . . . 2 . . . . . . 7 Scan Component 9 | . . . . . 4 . . . 1 . . . . . . 4 Repair 8 | . . . . . 4 . . . 1 . . . . . . 3 Recycling Unit Hacks 2 | . . . . . . . . . . . . . 1 1 . . Retrieve Matter 1 | . . . . . . . . . . . . . . 1 . . Retrieve Components 1 | . . . . . . . . . . . . . 1 . . . Scanalyzer 17 | . . . . . 4 4 . . 2 . . 4 3 . . . Insert Component 9 | . . . . . 2 3 . . 1 . . 2 1 . . . Analyze 8 | . . . . . 2 1 . . 1 . . 2 2 . . . Garrison Access Hacks 2 | . . . . . . . . . . . . 1 1 . . . Seal Access 2 | . . . . . . . . . . . . 1 1 . . . Unauthorized Hacks 25 | . 2 . . . 4 4 . . 3 2 . 2 . 5 3 . Terminals 22 | . 2 . . . 4 2 . . 3 1 . 2 . 5 3 . Track 1 | . 1 . . . . . . . . . . . . . . . Botnet 20 | . 1 . . . 4 2 . . 3 1 . 2 . 4 3 . Detonate 1 | . . . . . . . . . . . . . . 1 . . Fabricators 2 | . . . . . . 2 . . . . . . . . . . Report 1 | . . . . . . 1 . . . . . . . . . . Haulers 1 | . . . . . . 1 . . . . . . . . . . Repair Stations . | . . . . . . . . . . . . . . . . . Recycling Units . | . . . . . . . . . . . . . . . . . Scanalyzers 1 | . . . . . . . . . . 1 . . . . . . Extract 1 | . . . . . . . . . . 1 . . . . . . Garrison Access . | . . . . . . . . . . . . . . . . . Data Cores Recovered 1 | . . . . . . . . . . . . 1 . . . . Used . | . . . . . . . . . . . . . . . . . Hacking Detections 57 | . 2 . . . 6 11 . . 7 2 . 9 3 5 5 7 Full Trace Events 8 | . 1 . . . . 1 . . 4 . . 2 . . . . Feedback Events . | . . . . . . . . . . . . . . . . . Feedback Blocked . | . . . . . . . . . . . . . . . . . Robot Schematics Acquired . | . . . . . . . . . . . . . . . . . Robots Built . | . . . . . . . . . . . . . . . . . Authchips . | . . . . . . . . . . . . . . . . . Time . | . . . . . . . . . . . . . . . . . Total Robot Build Rating . | . . . . . . . . . . . . . . . . . Part Schematics Acquired 15 | . . . . . 3 1 . . 5 2 . 2 2 . . . Parts Built 10 | . . . . . . 3 . . 2 . . 3 2 . . . Authchips . | . . . . . . . . . . . . . . . . . Time 571 | . . . . . . 212 . . 36 . . 254 69 . . . Total Part Build Rating 64 | . . . . . . 19 . . 6 . . 21 18 . . . Parts Repaired 8 | . . . . . 4 . . . 1 . . . . . . 3 Time 228 | . . . . . 104 . . . 44 . . . . . . 80 Parts Recycled . | . . . . . . . . . . . . . . . . . Recycled Matter . | . . . . . . . . . . . . . . . . . Retrieved Matter . | . . . . . . . . . . . . . . . . . Retrieved Components 3 | . . . . . . . . . . . . . 3 . . . Parts Scanalyzed 7 | . . . . . 2 2 . . . . . 2 1 . . . Part Schematics Acquired 7 | . . . . . 2 1 . . 1 . . 2 1 . . . Parts Damaged . | . . . . . . . . . . . . . . . . . Bothacking | -11 -10 -10 -10 -9 -8 -7 -7 -7 -6 -5 -5 -5 -4 -3 -2 -1 ------------ Run | Scr Mat Min Exi Min Mat Fac Low Low Fac Fac Was Fac Fac Res Res Acc Used RIF Installer . | . . . . . . . . . . . . . . . . . Robots Hacked . | . . . . . . . . . . . . . . . . . Non-combat . | . . . . . . . . . . . . . . . . . Combat . | . . . . . . . . . . . . . . . . . Robot Hacks Applied . | . . . . . . . . . . . . . . . . . Relay Couplers Released . | . . . . . . . . . . . . . . . . . Fabnet Peak Effective % . | . . . . . . . . . . . . . . . . . Robots Rewired . | . . . . . . . . . . . . . . . . . Allies Hacked . | . . . . . . . . . . . . . . . . . Hacks Repelled . | . . . . . . . . . . . . . . . . . Allies | -11 -10 -10 -10 -9 -8 -7 -7 -7 -6 -5 -5 -5 -4 -3 -2 -1 -------- Run | Scr Mat Min Exi Min Mat Fac Low Low Fac Fac Was Fac Fac Res Res Acc Total Allies 20 | . . . . . . . . . . . 20 . . . . . Largest Group 20 | . . . . . . . . . . . 20 3 . . . . Highest-Rated Group 759 | . . . . . . . . . . . 759 75 . . . . Highest-Rated Ally 46 | . . . . . . . . . . . 46 25 . . . . Total Orders 2 | . . . . . . . . . 2 . . . . . . . EXPLORE 2 | . . . . . . . . . 2 . . . . . . . Ally Attacks 45 | . . . . . . . . . . . 15 30 . . . . Total Damage 767 | . . . . . . . . . . . 328 439 . . . . Kills 3 | . . . . . . . . . . . 1 2 . . . . Allies Corrupted . | . . . . . . . . . . . . . . . . . Allies Melted . | . . . . . . . . . . . . . . . . . Intel | -11 -10 -10 -10 -9 -8 -7 -7 -7 -6 -5 -5 -5 -4 -3 -2 -1 ------- Run | Scr Mat Min Exi Min Mat Fac Low Low Fac Fac Was Fac Fac Res Res Acc Robot Analysis Total . | . . . . . . . . . . . . . . . . . Derelict Logs Recovered 4 | . . 2 . . . . 2 . . . . . . . . . Drone Launches 3 | . . 1 . . . . . . 2 . . . . . . . Drone Recoveries . | . . . . . . . . . . . . . . . . . Exploration | -11 -10 -10 -10 -9 -8 -7 -7 -7 -6 -5 -5 -5 -4 -3 -2 -1 ------------- Run | Scr Mat Min Exi Min Mat Fac Low Low Fac Fac Was Fac Fac Res Res Acc Turns Passed 6724 | 4 328 631 645 160 1093 1210 122 18 447 164 209 422 182 377 239 473 Spaces Moved 9042 | 4 169 494 536 134 463 1645 357 51 655 306 410 972 315 697 680 1154 Core . | . . . . . . . . . . . . . . . . . Treads 554 | . . . . . 382 172 . . . . . . . . . . Legs 1416 | 4 169 494 536 134 79 . . . . . . . . . . . Wheels . | . . . . . . . . . . . . . . . . . Hover 2 | . . . . . 2 . . . . . . . . . . . Flight 7070 | . . . . . . 1473 357 51 655 306 410 972 315 697 680 1154 Fastest Speed 22 | 120 120 120 120 120 106 34 34 34 32 37 37 37 31 26 22 24 Average Speed 54 | 120 120 120 120 120 153 49 34 34 33 37 37 37 31 27 25 26 Slowest Speed 240 | 120 120 120 120 120 240 160 34 34 34 37 37 37 32 32 28 28 Overloaded Moves . | . . . . . . . . . . . . . . . . . Propulsion Burnouts . | . . . . . . . . . . . . . . . . . Robots Hopped 54 | . . . . . . 21 . . . . . 2 2 3 15 11 Cave-ins Triggered . | . . . . . . . . . . . . . . . . . Exploration Rate (%) 36 | 2 35 96 92 28 35 32 62 8 26 8 95 24 10 21 22 30 Regions Visited 16 Branch Regions 5 Pre-discovered Areas 1 | . . . 1 . . . . . . . . . . . . . Known Exits Taken 7 | . . . . . 1 . 1 . 1 . . 1 1 1 1 . Unknown Exits Taken 7 | 1 1 1 1 1 . 1 . 1 . . . . . . . . Scrap Searched 4 | . . 3 . . . . 1 . . . . . . . . . Spaces Dug 69 | . . . . . . 1 . . 20 6 . 2 . 8 14 18 Terrain Destroyed 83 | . . . . . . 1 . . 20 6 . 2 . 8 14 32 Melee 47 | . . . . . . 1 . . 20 6 . 2 . 8 10 . Projectile 22 | . . . . . . . . . . . . . . . 4 18 AOE 14 | . . . . . . . . . . . . . . . . 14 Terrain Rammed 1 | . . . . . . . . . . . . . . 1 . . Walls Destroyed . | . . . . . . . . . . . . . . . . . Machines Disabled 1 | . . . . . . . . . . . . . . 1 . . Actions | -11 -10 -10 -10 -9 -8 -7 -7 -7 -6 -5 -5 -5 -4 -3 -2 -1 --------- Run | Scr Mat Min Exi Min Mat Fac Low Low Fac Fac Was Fac Fac Res Res Acc Total 10500 | 3 240 525 537 133 782 1972 356 50 856 339 469 1015 393 835 713 1282 Wait 1039 | . 37 6 . . 219 275 . . 158 12 45 10 70 89 13 105 Move 8920 | 3 168 493 535 133 462 1603 356 50 654 306 409 967 310 690 651 1130 Hop 51 | . . . . . . 20 . . . . . 2 2 3 13 11 Pick Up 35 | . 1 2 1 . 9 2 . . 4 3 4 2 1 2 4 . Fast Attach 81 | . 1 2 . . 16 11 . . 5 1 3 10 5 14 4 9 Attach 28 | . . 1 . . 8 3 . . 2 3 . 2 3 2 3 1 Detach 31 | . . 2 . . 5 7 . . 5 . 2 4 1 1 3 1 Swap 16 | . 3 1 1 . 8 . . . 1 . . . . 2 . . Drop 77 | . 1 6 . . 18 13 . . 7 2 6 7 1 5 7 4 Fire 119 | . 26 4 . . 36 24 . . . . . . . 4 5 20 Melee 89 | . . . . . . 14 . . 20 12 . 11 . 22 10 . Ram 1 | . . . . . . . . . . . . . . 1 . . Kick 11 | . 3 8 . . . . . . . . . . . . . . Crush 1 | . . . . . 1 . . . . . . . . . . . Escape Stasis 1 | . . . . . . . . . . . . . . . . 1 Rewire . | . . . . . . . . . . . . . . . . . Trap . | . . . . . . . . . . . . . . . . . Miscellaneous . | . . . . . . . . . . . . . . . . . Route ------- -11/Scrapyard -10/Materials -10/Mines (discovered 3 exits: [*Mat x2] / *Exi) -10/Exiles (discovered 2 exits: [*Min x2]) -9/Mines -8/Materials (discovered 4 exits: *Fac x3 / [*Sto]) -7/Factory -7/Lower Caves -7/Lower Caves -6/Factory -5/Factory -5/Waste -5/Factory (discovered 2 exits: *Fac x2) -4/Factory (discovered 3 exits: *Res / DSF / DSF) -3/Research (discovered 3 exits: *Res / [*Arm] / *Tes) -2/Research (discovered 3 exits: *Acc x3) -1/Access To Epsilon Eridani History --------- Turn | Location | Event 1 | -11/Scrapyard | Discovered new exit (range 2) 5 | -11/Scrapyard | Entered Materials 302 | -10/Materials | Build established: Mutant 325 | -10/Materials | Discovered new exit (range 6) 333 | -10/Materials | Entered Mines 361 | -10/Mines | Learned Materials interactive machine intel 477 | -10/Mines | Discovered new exit (range 6) 513 | -10/Mines | Assembled infested the area 590 | -10/Mines | Learned Materials stockpile data 636 | -10/Mines | Found the Drone Emporium 642 | -10/Mines | Found Prototype Device 642 | -10/Mines | Identified Splice Drone Bay 658 | -10/Mines | Discovered new exit (range 6) 959 | -10/Mines | Discovered new exit (range 5) 964 | -10/Mines | Entered Exiles 983 | -10/Exiles | Discovered new exit (range 15) 1019 | -10/Exiles | Met 8R-AWN 1038 | -10/Exiles | Met EX-HEX 1097 | -10/Exiles | Met EX-DEC 1116 | -10/Exiles | Visited The Gauntlet 1255 | -10/Exiles | Learned location of Zion (-6) 1326 | -10/Exiles | Discovered new exit (range 10) 1408 | -10/Exiles | Met EX-BIN 1423 | -10/Exiles | Aligned with FarCom system 1424 | -10/Exiles | Given EX-Vault access code 1474 | -10/Exiles | Opened EX-Vault 1489 | -10/Exiles | Found Cloak of Protection 1515 | -10/Exiles | Warned to stay clear of 0b10 Research branches 1609 | -10/Exiles | Left Exiles lab with Cloak of Protection 1609 | -10/Exiles | Entered Mines 1641 | -9/Mines | Met a Derelict bent on vengeance 1692 | -9/Mines | Discovered new exit (range 16) 1769 | -9/Mines | Entered Materials 1769 | -8/Materials | Evolved 4 slots: Power x1, Propulsion x1, Utility x2 1771 | -8/Materials | Loaded intel: 19 interactive machine locations 2232 | -8/Materials | Repaired Lgt. Treads 2259 | -8/Materials | Repaired Lgt. Treads 2287 | -8/Materials | Repaired Weapon Shielding 2314 | -8/Materials | Repaired Lgt. Treads 2415 | -8/Materials | Identified exit to Factory 2471 | -8/Materials | Discovered new exit (range 6) 2862 | -8/Materials | Entered Factory 2862 | -7/Factory | Evolved 2 slots: Utility x2 3146 | -7/Factory | Fabricated Field Propulsion Array (x2) 3299 | -7/Factory | Fabricated Drone Bay (x1) 4041 | -7/Factory | Discovered new exit (range 5) 4072 | -7/Factory | Entered Lower Caves 4085 | -7/Lower Caves | Learned Factory stockpile data 4162 | -7/Lower Caves | Attracted the attention of an 0b10 outpost 4167 | -7/Lower Caves | Identified exit to Lower Caves 4194 | -7/Lower Caves | Entered another Lower Caves area 4209 | -7/Lower Caves | Discovered new exit (range 9) 4212 | -7/Lower Caves | Entered Factory 4212 | -6/Factory | Evolved 2 slots: Propulsion x1, Utility x1 4263 | -6/Factory | Repaired Imp. Medium Armor Plating 4516 | -6/Factory | Central database locked down 4638 | -6/Factory | Fabricated Imp. Propulsion Shielding? 4654 | -6/Factory | Discovered new exit (range 16) 4659 | -6/Factory | Identified exit to Factory 4659 | -6/Factory | Entered another Factory area 4659 | -5/Factory | Evolved 2 slots: Utility x2 4731 | -5/Factory | Build established: Hacker-Mutant 4823 | -5/Factory | Manually triggered Chute Trap 4823 | -5/Factory | Sucked down chute 4823 | -5/Factory | Entered Waste 4824 | -5/Waste | Joined by Warlord forces that had cleared the area 4845 | -5/Waste | Found Prototype Device 4845 | -5/Waste | Identified Adv. EM Disruption Field 4921 | -5/Waste | Discovered new exit (range 16) 4950 | -5/Waste | A Compactor rumbled back to life 4953 | -5/Waste | Spotted C-40 Crusher 4953 | -5/Waste | Allies destroyed C-40 Crusher 5032 | -5/Waste | Identified exit to Factory 5032 | -5/Waste | Entered Factory 5032 | -5/Factory | Accompanied by 3 allies 5137 | -5/Factory | Fabricated Imp. Hacking Suite? 5137 | -5/Factory | Discovered new exit (range 4) 5138 | -5/Factory | Identified exit to Factory 5372 | -5/Factory | Fabricated Particle Reactor (x2) 5400 | -5/Factory | Discovered exit to Factory (range 15) 5454 | -5/Factory | Entered another Factory area 5454 | -4/Factory | Evolved 2 slots: Propulsion x2 5460 | -4/Factory | Identified exit to DSF 5541 | -4/Factory | Fabricated Enh. Quantum Rifle (x2) 5597 | -4/Factory | Identified exit to DSF 5619 | -4/Factory | Discovered new exit (range 14) 5629 | -4/Factory | Identified exit to Research 5636 | -4/Factory | Entered Research 5636 | -3/Research | Evolved 2 slots: Propulsion x1, Utility x1 5702 | -3/Research | Found Prototype Device 5702 | -3/Research | Identified Exp. Thermal Shield 5722 | -3/Research | Discovered new exit (range 17) 5755 | -3/Research | Discovered new exit (range 16) 5756 | -3/Research | Build established: Hacker-Sprinter 5942 | -3/Research | Identified exit to Testing 5979 | -3/Research | Found Prototype Launcher 5979 | -3/Research | Identified Com. Tesla Bomb Launcher 6006 | -3/Research | Discovered new exit (range 9) 6008 | -3/Research | Identified exit to Research 6009 | -3/Research | Found Fusion Bomb Launcher 6013 | -3/Research | Entered another Research area 6013 | -2/Research | Evolved 2 slots: Weapon x2 6016 | -2/Research | Spotted B-90 Cyclops 6041 | -2/Research | Lost 6 parts (2n4u) 6143 | -2/Research | Identified exit to Access 6194 | -2/Research | Spotted B-90 Cyclops 6252 | -2/Research | Entered Access 6252 | -1/Access | Evolved 2 slots: Propulsion x1, Utility x1 6341 | -1/Access | Repaired Field Propulsion Array 6374 | -1/Access | Repaired Field Propulsion Array 6566 | -1/Access | Repaired Mic. Fission Core 6575 | -1/Access | Spotted B-99 Colossus 6691 | -1/Access | Energy Cycler disabled 6723 | -1/Access | Discovered new exit (range 5) 6724 | -1/Access | Identified exit to Surface 6725 | *** | Escaped! Last Messages --------------- >>Scan(Imp. Diametric Drive) Scanning Imp. Diametric Drive... Ready to Repair: Imp. Diametric Drive Rating: 8p Time: 36 06677_ Dropped Broken Imp. Diametric Drive. 06691_ ALERT: Power surge detected, dispatching additional patrols. 06691_ Energy Cycler explodes. 06700_ Slug penetrates Wall. 06701_ Overheating: System interference. 06701_ Adv. Signal Interpreter temporarily disabled. 06701_ Adv. Terrain Scan Processor temporarily disabled. 06701_ Enh. Nova Cannon temporarily disabled. 06710_ Connecting with Garrison Access... 06723_ Connecting with Terminal... 06723_ The Access Shell folds into the floor. 06723_ EXIT=FOUND 06724_ EXIT=IDENTIFIED: SURFACE [Achievement: Epsilon Run] Map ----- +----------------------------------------------------+ | ?????????????+ # #?????????????????????? | | ?????????????# # #?????????????????????? | | ?????????###?# # #?????????????????????? | | ########## ### " # #?????????????????????? | | # * # """ # #?????????????????????? | | # # """ # #?????????????????????? | | # # " + +?????????????????????? | | # ""# # #?????????????????????? | | # !! ""# # #?????????????????????? | | # !! ""#"######## ??????????????????????? | | # G###?????? ??????????????????????? | | # ""#???????? ??????????????????????? | | # ""#??????? ??????????????????????? | | # ""#??????? ??????????????????????? | | # #???????BB BB????????????????????? | | # #???????BB? BB????????????????????? | | #######+######???????????????????????????????????? | | #???????????????????????????????????? | | #???????????????????????????????????? | | ########### ##??????????????????????????????????? | | ?# + "#????#""""""""""#??????????????????? | | ?# # #?????# #??????????????????? | | ?# ??# #?????# #??????????????????? | | ?#||! ????# #?????# #??????????????????? | | ?#|!??????# #?????# "" #??????????????????? | | ?#????????# #?????# "@ #??????????????????? | | ??????????# #?????# #??????????????????? | | ??????????# #?????# #??????????????????? | | ??????????# #?????# #??????????????????? | | ??????????# #????## ##?????????????????? | | ??????????# #????# #?????????????????? | | ??????????# #????##"" ##?????????????????? | | ??????????# #?????#"" #??????????????????? | | ??????????# #?????#"" #??????????????????? | | ??????????# #?????#T #??????????????????? | | ??????????# #?????#"" #??????????????????? | | ??????????# #?????#"" #??????????????????? | | ?????##+### #######"" #??????????????????? | | ???# ???????????? | | ???????????? | | ?##########+#########################????????????? | | ?????????????????????????????????????????????????? | | ?????????????????????????????????????????????????? | | ?????????????????????????????????????????????????? | | ?????????????????????????????????????????????????? | | ?????????????????????????????????????????????????? | | ?????????????????????????????????????????????????? | | ?????????????????????????????????????????????????? | | ?????????????????????????????????????????????????? | | ?????????????????????????????????????????????????? | +----------------------------------------------------+ Best States ------------- Heat Dissipation 52 Energy Generation 35 Energy Capacity 975 Matter Stores 300 Matter Capacity 300 Sight Range 16 Terrain Scan Range 20 Terrain Scan Density 210 Jamming Range 14 Cloak Strength 5 Armor Coverage 225 Resistance: TH 30 Propulsion Shielding 66 Weapon Shielding 33 Phase Shifting 5 Evasion (%) 81 Recoil Reduction 3 Offensive Hacking 22 Defensive Hacking 24 Item Schematics ----------------- Utility Shielding | -8/Materials | Hacked Adv. Beam Rifle | -8/Materials | Scanalyzed Enh. Autogun | -8/Materials | Scanalyzed Imp. Deuterium Engine | -7/Factory | Scanalyzed Imp. Propulsion Shielding | -6/Factory | Hacked Imp. Hacking Suite | -6/Factory | Hacked Imp. System Shield | -6/Factory | Hacked Great Maul | -6/Factory | Hacked Field Propulsion Array | -6/Factory | Scanalyzed Imp. Particle Charger | -5/Factory | Extracted Cmb. Airjet | -5/Factory | Extracted Adv. Reaction Control System | -5/Factory | Scanalyzed Centrium Leg | -5/Factory | Scanalyzed Adv. Phase Shifter | -4/Factory | Hacked Enh. Quantum Rifle | -4/Factory | Scanalyzed Robot Schematics ------------------ None Fabricated ------------ Field Propulsion Array | x2 | -7/Factory | Preloaded Drone Bay | x1 | -7/Factory | Preloaded Imp. Propulsion Shielding | x2 | -6/Factory Imp. Hacking Suite | x1 | -5/Factory Particle Reactor | x2 | -5/Factory | Preloaded Enh. Quantum Rifle | x2 | -4/Factory | Preloaded Alien Tech Used ----------------- None Achievements -------------- Epsilon Run Challenges ------------ None Game ------ Seed ReinforcedXenonAnalyzer Manual? 0 Play Time 02:11:38 Cumulative 130.0 hours Start 2022.11.19 @ 11:09:56 End 2022.11.19 @ 14:10:17 Sessions 1 Manual Loads 0 Difficulty Rogue Special Mode None Game No. 158 Rogue 158 Adventurer 0 Explorer 0 Win Type 0 Total 1 Types 1/0/0/0/0/0/0/0/0 Lore% 57 Gallery% 68 Achievement% 53 Wizard Run 0 Options --------- ASCII 0 Keyboard 1 Movement Numpad Keybinds 0 Fullscreen 1 Font 18/SmallcapsGlow Map View 76x50 Tactical HUD 1 Map Filters NONE Filters NONE Steam 1 RUN: e6f68df7-bd7e-4b0e-b19d-13b018e68ff1